[Event "Titled Tuesday Blitz April 4 Late 2023"]
[White "Abduzhaparov"]
[Black "Kavutskiy, Konstantin"]
[BlackFideId "2026384"]
[WhiteElo "2419"]
[BlackElo "2323"]
[Result "0-1"]
[Round "03"]
[TimeControl "180+2"]
[Date "2023.04.04"]
[WhiteClock "0:00:06"]
[BlackClock "0:00:31"]

1. Nf3 {[%clk 0:03:00]}  Nf6 {[%clk 0:02:59]} 2. c4 {[%clk 0:03:01]}  g6 {[%clk 0:02:59]} 3. Nc3 {[%clk 0:03:01]}  Bg7 {[%clk 0:03:00]} 4. e4 {[%clk 0:03:02]}  d6 {[%clk 0:03:01]} 5. d4 {[%clk 0:03:03]}  O-O {[%clk 0:03:02]} 6. Be3 {[%clk 0:03:03]}  Na6 {[%clk 0:02:56]} 7. Be2 {[%clk 0:03:02]}  e5 {[%clk 0:02:54]} 8. d5 {[%clk 0:03:02]}  Nh5 {[%clk 0:02:51]} 9. g3 {[%clk 0:02:57]}  f5 {[%clk 0:02:50]} 10. exf5 {[%clk 0:02:57]}  gxf5 {[%clk 0:02:51]} 11. Bg5 {[%clk 0:02:53]}  Nf6 {[%clk 0:02:49]} 12. Nh4 {[%clk 0:02:49]}  Nc5 {[%clk 0:02:41]} 13. Qc2 {[%clk 0:02:48]}  e4 {[%clk 0:02:26]} 14. f3 {[%clk 0:02:38]}  Qe8 {[%clk 0:02:17]} 15. fxe4 {[%clk 0:02:31]}  Nfxe4 {[%clk 0:02:10]} 16. Nxe4 {[%clk 0:02:23]}  fxe4 {[%clk 0:02:08]} 17. Be3 {[%clk 0:02:16]}  Qe5 {[%clk 0:02:04]} 18. O-O-O {[%clk 0:02:12]}  a5 {[%clk 0:01:54]} 19. Bd4 {[%clk 0:02:05]}  Nd3+ {[%clk 0:01:44]} 20. Rxd3 {[%clk 0:01:49]}  exd3 {[%clk 0:01:44]} 21. Bxe5 {[%clk 0:01:49]}  dxc2 {[%clk 0:01:44]} 22. Bf4 {[%clk 0:01:40]}  a4 {[%clk 0:01:38]} 23. Kxc2 {[%clk 0:01:34]}  a3 {[%clk 0:01:38]} 24. b3 {[%clk 0:01:34]}  Bd7 {[%clk 0:01:32]} 25. Bd3 {[%clk 0:01:32]}  Rae8 {[%clk 0:01:29]} 26. Nf3 {[%clk 0:00:54]}  Bf5 {[%clk 0:01:23]} 27. Bxf5 {[%clk 0:00:51]}  Rxf5 {[%clk 0:01:23]} 28. Kd3 {[%clk 0:00:48]}  Rf7 {[%clk 0:01:20]} 29. Ng5 {[%clk 0:00:44]}  Rf5 {[%clk 0:01:01]} 30. Ne6 {[%clk 0:00:37]}  c6 {[%clk 0:01:01]} 31. Nc7 {[%clk 0:00:25]}  Rc8 {[%clk 0:00:56]} 32. Bxd6 {[%clk 0:00:25]}  Rf2 {[%clk 0:00:54]} 33. Ne6 {[%clk 0:00:18]}  Rxa2 {[%clk 0:00:53]} 34. Nxg7 {[%clk 0:00:18]}  Kxg7 {[%clk 0:00:51]} 35. Re1 {[%clk 0:00:17]}  cxd5 {[%clk 0:00:45]} 36. Re7+ {[%clk 0:00:16]}  Kg6 {[%clk 0:00:45]} 37. cxd5 {[%clk 0:00:15]}  Rd8 {[%clk 0:00:43]} 38. Re6+ {[%clk 0:00:16]}  Kf5 {[%clk 0:00:43]} 39. Kc4 {[%clk 0:00:12]}  Rc2+ {[%clk 0:00:37]} 40. Kb4 {[%clk 0:00:11]}  Rxd6 {[%clk 0:00:31]} 41. Rxd6 {[%clk 0:00:07]}  a2 {[%clk 0:00:31]} 42. Ra6 {[%clk 0:00:06]}  bxa6 {[%clk 0:00:31]} 0-1


[Site "https://www.chess.com"]

[Event "Titled Tuesday Blitz April 4 Late 2023"]
[White "Zeman, Matyas"]
[Black "TimGrutter03"]
[WhiteFideId "364398"]
[WhiteElo "2254"]
[BlackElo "2580"]
[Result "1-0"]
[Round "03"]
[TimeControl "180+2"]
[Date "2023.04.04"]
[WhiteClock "0:00:17"]
[BlackClock "0:00:08"]

1. d4 {[%clk 0:02:54]}  g6 {[%clk 0:03:00]} 2. Nf3 {[%clk 0:02:53]}  Bg7 {[%clk 0:03:01]} 3. e4 {[%clk 0:02:52]}  d6 {[%clk 0:03:01]} 4. Nbd2 {[%clk 0:02:52]}  c6 {[%clk 0:03:01]} 5. Bd3 {[%clk 0:02:50]}  Nf6 {[%clk 0:03:01]} 6. O-O {[%clk 0:02:50]}  O-O {[%clk 0:03:02]} 7. Re1 {[%clk 0:02:48]}  Bg4 {[%clk 0:02:57]} 8. h3 {[%clk 0:02:47]}  Bxf3 {[%clk 0:02:58]} 9. Nxf3 {[%clk 0:02:48]}  Nbd7 {[%clk 0:02:51]} 10. Bf4 {[%clk 0:02:37]}  e5 {[%clk 0:02:49]} 11. dxe5 {[%clk 0:02:36]}  Nh5 {[%clk 0:02:48]} 12. Be3 {[%clk 0:02:33]}  Nxe5 {[%clk 0:02:46]} 13. Nxe5 {[%clk 0:02:33]}  dxe5 {[%clk 0:02:44]} 14. Bc4 {[%clk 0:02:30]}  Qf6 {[%clk 0:02:39]} 15. Qd7 {[%clk 0:02:24]}  b5 {[%clk 0:02:31]} 16. Bb3 {[%clk 0:02:18]}  a5 {[%clk 0:02:22]} 17. a4 {[%clk 0:02:18]}  Rfd8 {[%clk 0:02:21]} 18. Qc7 {[%clk 0:01:43]}  Rdc8 {[%clk 0:02:02]} 19. Qd7 {[%clk 0:01:43]}  b4 {[%clk 0:01:48]} 20. Rad1 {[%clk 0:01:37]}  Nf4 {[%clk 0:01:45]} 21. Bc4 {[%clk 0:01:33]}  Rd8 {[%clk 0:01:38]} 22. Qg4 {[%clk 0:01:28]}  h5 {[%clk 0:01:35]} 23. Qf3 {[%clk 0:01:25]}  Rxd1 {[%clk 0:01:07]} 24. Rxd1 {[%clk 0:01:26]}  Rd8 {[%clk 0:01:07]} 25. b3 {[%clk 0:01:26]}  Qe7 {[%clk 0:00:29]} 26. Bb6 {[%clk 0:01:19]}  Ra8 {[%clk 0:00:19]} 27. Be3 {[%clk 0:01:05]}  Ne6 {[%clk 0:00:17]} 28. Bxe6 {[%clk 0:00:53]}  Qxe6 {[%clk 0:00:18]} 29. Qe2 {[%clk 0:00:51]}  Bf8 {[%clk 0:00:16]} 30. Qd3 {[%clk 0:00:49]}  Be7 {[%clk 0:00:12]} 31. Rd2 {[%clk 0:00:42]}  Rd8 {[%clk 0:00:11]} 32. Qa6 {[%clk 0:00:42]}  Rxd2 {[%clk 0:00:10]} 33. Bxd2 {[%clk 0:00:43]}  Qd7 {[%clk 0:00:07]} 34. Qd3 {[%clk 0:00:43]}  Qxd3 {[%clk 0:00:06]} 35. cxd3 {[%clk 0:00:44]}  Bc5 {[%clk 0:00:06]} 36. Kf1 {[%clk 0:00:42]}  f6 {[%clk 0:00:06]} 37. Ke2 {[%clk 0:00:42]}  Kf7 {[%clk 0:00:06]} 38. f4 {[%clk 0:00:40]}  Ke6 {[%clk 0:00:05]} 39. Kf3 {[%clk 0:00:38]}  exf4 {[%clk 0:00:04]} 40. Bxf4 {[%clk 0:00:39]}  Bb6 {[%clk 0:00:05]} 41. Bc1 {[%clk 0:00:33]}  Bc7 {[%clk 0:00:04]} 42. Bb2 {[%clk 0:00:33]}  Bb6 {[%clk 0:00:04]} 43. d4 {[%clk 0:00:33]}  Bc7 {[%clk 0:00:04]} 44. g4 {[%clk 0:00:33]}  hxg4+ {[%clk 0:00:04]} 45. hxg4 {[%clk 0:00:33]}  Bb6 {[%clk 0:00:03]} 46. Ke3 {[%clk 0:00:29]}  Bc7 {[%clk 0:00:02]} 47. Kd3 {[%clk 0:00:29]}  Bb6 {[%clk 0:00:02]} 48. Kc4 {[%clk 0:00:29]}  f5 {[%clk 0:00:02]} 49. gxf5+ {[%clk 0:00:18]}  gxf5 {[%clk 0:00:03]} 50. exf5+ {[%clk 0:00:19]}  Kxf5 {[%clk 0:00:03]} 51. d5 {[%clk 0:00:19]}  cxd5+ {[%clk 0:00:04]} 52. Kxd5 {[%clk 0:00:20]}  Kf4 {[%clk 0:00:04]} 53. Kc6 {[%clk 0:00:20]}  Bd8 {[%clk 0:00:05]} 54. Bd4 {[%clk 0:00:19]}  Ke4 {[%clk 0:00:05]} 55. Bb6 {[%clk 0:00:19]}  Be7 {[%clk 0:00:05]} 56. Bxa5 {[%clk 0:00:19]}  Kd3 {[%clk 0:00:06]} 57. Bb6 {[%clk 0:00:17]}  Kc3 {[%clk 0:00:06]} 58. a5 {[%clk 0:00:17]}  Kxb3 {[%clk 0:00:06]} 59. a6 {[%clk 0:00:18]}  Kc2 {[%clk 0:00:06]} 60. a7 {[%clk 0:00:19]}  b3 {[%clk 0:00:07]} 61. a8=Q {[%clk 0:00:19]}  b2 {[%clk 0:00:07]} 62. Qa4+ {[%clk 0:00:20]}  Kc1 {[%clk 0:00:08]} 63. Be3+ {[%clk 0:00:19]}  Kb1 {[%clk 0:00:08]} 64. Bd4 {[%clk 0:00:19]}  Bg5 {[%clk 0:00:07]} 65. Qb3 {[%clk 0:00:17]}  Bc1 {[%clk 0:00:07]} 66. Kd5 {[%clk 0:00:17]}  Ka1 {[%clk 0:00:07]} 67. Kc4 {[%clk 0:00:17]}  Kb1 {[%clk 0:00:07]} 68. Kd3 {[%clk 0:00:17]}  Ka1 {[%clk 0:00:08]} 69. Kc2 {[%clk 0:00:17]} 1-0


[Site "https://www.chess.com"]

[Event "Titled Tuesday Blitz April 4 Late 2023"]
[White "Drori, Saar"]
[Black "Senft, Sean"]
[WhiteFideId "2812444"]
[BlackFideId "2044960"]
[WhiteElo "2322"]
[BlackElo "1989"]
[Result "1-0"]
[Round "03"]
[TimeControl "180+2"]
[Date "2023.04.04"]
[WhiteClock "0:01:30"]
[BlackClock "0:00:14"]

1. e4 {[%clk 0:03:00]}  c5 {[%clk 0:02:58]} 2. Nc3 {[%clk 0:02:59]}  d6 {[%clk 0:02:57]} 3. g3 {[%clk 0:03:00]}  Nc6 {[%clk 0:02:57]} 4. Bg2 {[%clk 0:03:00]}  g6 {[%clk 0:02:57]} 5. d3 {[%clk 0:03:01]}  Bg7 {[%clk 0:02:58]} 6. Be3 {[%clk 0:03:01]}  e5 {[%clk 0:02:59]} 7. Qd2 {[%clk 0:03:01]}  Nge7 {[%clk 0:02:59]} 8. Bh6 {[%clk 0:03:01]}  Bxh6 {[%clk 0:02:59]} 9. Qxh6 {[%clk 0:03:01]}  Nd4 {[%clk 0:03:00]} 10. O-O-O {[%clk 0:02:54]}  Be6 {[%clk 0:03:00]} 11. Nh3 {[%clk 0:02:44]}  b5 {[%clk 0:02:36]} 12. Qg7 {[%clk 0:02:35]}  Rg8 {[%clk 0:02:30]} 13. Qxh7 {[%clk 0:02:33]}  b4 {[%clk 0:02:30]} 14. Nd5 {[%clk 0:02:33]}  Bxd5 {[%clk 0:02:24]} 15. exd5 {[%clk 0:02:32]}  Qa5 {[%clk 0:02:23]} 16. Kb1 {[%clk 0:02:19]}  Rb8 {[%clk 0:01:48]} 17. Ng5 {[%clk 0:02:13]}  Rf8 {[%clk 0:01:47]} 18. Qg7 {[%clk 0:01:58]}  Nb5 {[%clk 0:01:35]} 19. Nh7 {[%clk 0:01:51]}  Nc3+ {[%clk 0:01:03]} 20. Kc1 {[%clk 0:01:50]}  Nxa2+ {[%clk 0:00:32]} 21. Kd2 {[%clk 0:01:49]}  b3+ {[%clk 0:00:32]} 22. c3 {[%clk 0:01:45]}  Nxc3 {[%clk 0:00:15]} 23. Qxf8+ {[%clk 0:01:40]}  Kd7 {[%clk 0:00:15]} 24. Nf6+ {[%clk 0:01:41]}  Kc7 {[%clk 0:00:14]} 25. Qxe7+ {[%clk 0:01:41]}  Kb6 {[%clk 0:00:15]} 26. Qxd6+ {[%clk 0:01:30]}  Kb5 {[%clk 0:00:14]} 27. Qc6+ {[%clk 0:01:30]}  Kb4 {[%clk 0:00:13]} 28. bxc3+ {[%clk 0:01:31]}  Ka3 {[%clk 0:00:14]} 29. Ra1+ {[%clk 0:01:31]}  Kb2 {[%clk 0:00:14]} 30. Rxa5 {[%clk 0:01:30]} 1-0


[Site "https://www.chess.com"]

[Event "Titled Tuesday Blitz April 4 Late 2023"]
[White "Rastbod, Ali"]
[Black "Qiao, Cindy"]
[WhiteFideId "12567477"]
[BlackFideId "2620243"]
[WhiteElo "2248"]
[BlackElo "1777"]
[Result "1-0"]
[Round "03"]
[TimeControl "180+2"]
[Date "2023.04.04"]
[WhiteClock "0:00:14"]
[BlackClock "0:00:19"]

1. e4 {[%clk 0:03:00]}  c5 {[%clk 0:02:58]} 2. Nc3 {[%clk 0:03:01]}  Nc6 {[%clk 0:02:58]} 3. g3 {[%clk 0:03:01]}  g6 {[%clk 0:02:58]} 4. Bg2 {[%clk 0:03:02]}  Bg7 {[%clk 0:02:59]} 5. d3 {[%clk 0:03:03]}  e6 {[%clk 0:02:59]} 6. Be3 {[%clk 0:03:04]}  d6 {[%clk 0:02:59]} 7. Qd2 {[%clk 0:03:04]}  Nge7 {[%clk 0:03:00]} 8. Bh6 {[%clk 0:03:05]}  O-O {[%clk 0:03:00]} 9. h4 {[%clk 0:03:05]}  Re8 {[%clk 0:03:00]} 10. Bxg7 {[%clk 0:03:04]}  Kxg7 {[%clk 0:03:01]} 11. h5 {[%clk 0:03:05]}  Ng8 {[%clk 0:02:59]} 12. O-O-O {[%clk 0:03:05]}  Bd7 {[%clk 0:02:56]} 13. Nf3 {[%clk 0:02:51]}  Rb8 {[%clk 0:02:43]} 14. d4 {[%clk 0:02:49]}  cxd4 {[%clk 0:01:56]} 15. Nxd4 {[%clk 0:02:50]}  Qf6 {[%clk 0:01:50]} 16. Ndb5 {[%clk 0:02:32]}  Red8 {[%clk 0:01:20]} 17. Nxd6 {[%clk 0:02:22]}  Be8 {[%clk 0:01:02]} 18. f4 {[%clk 0:02:20]}  e5 {[%clk 0:01:01]} 19. Nxe8+ {[%clk 0:02:12]}  Rxe8 {[%clk 0:01:00]} 20. Nd5 {[%clk 0:02:13]}  Qe6 {[%clk 0:00:56]} 21. hxg6 {[%clk 0:02:14]}  hxg6 {[%clk 0:00:55]} 22. f5 {[%clk 0:02:14]}  gxf5 {[%clk 0:00:54]} 23. exf5 {[%clk 0:02:14]}  Qxf5 {[%clk 0:00:44]} 24. Rdf1 {[%clk 0:02:13]}  Qg6 {[%clk 0:00:41]} 25. Qe3 {[%clk 0:01:34]}  Nd4 {[%clk 0:00:33]} 26. Be4 {[%clk 0:01:26]}  f5 {[%clk 0:00:32]} 27. Bd3 {[%clk 0:01:16]}  Nf6 {[%clk 0:00:31]} 28. Nxf6 {[%clk 0:01:08]}  Qxf6 {[%clk 0:00:32]} 29. c3 {[%clk 0:00:58]}  e4 {[%clk 0:00:27]} 30. cxd4 {[%clk 0:00:20]}  exd3 {[%clk 0:00:26]} 31. Qxd3 {[%clk 0:00:21]}  Rbc8+ {[%clk 0:00:26]} 32. Kb1 {[%clk 0:00:21]}  Re4 {[%clk 0:00:24]} 33. Rd1 {[%clk 0:00:19]}  Rd8 {[%clk 0:00:24]} 34. d5 {[%clk 0:00:19]}  Qe5 {[%clk 0:00:22]} 35. Rd2 {[%clk 0:00:16]}  Re1+ {[%clk 0:00:21]} 36. Rxe1 {[%clk 0:00:15]}  Qxe1+ {[%clk 0:00:22]} 37. Kc2 {[%clk 0:00:16]}  Qe4 {[%clk 0:00:22]} 38. Qxe4 {[%clk 0:00:15]}  fxe4 {[%clk 0:00:23]} 39. Kc3 {[%clk 0:00:16]}  Kf6 {[%clk 0:00:23]} 40. Kd4 {[%clk 0:00:16]}  Kf5 {[%clk 0:00:21]} 41. Rf2+ {[%clk 0:00:16]}  Kg4 {[%clk 0:00:20]} 42. Kxe4 {[%clk 0:00:16]}  Kxg3 {[%clk 0:00:20]} 43. Rf7 {[%clk 0:00:17]}  Re8+ {[%clk 0:00:19]} 44. Kd4 {[%clk 0:00:17]}  b6 {[%clk 0:00:18]} 45. d6 {[%clk 0:00:15]}  Re1 {[%clk 0:00:16]} 46. d7 {[%clk 0:00:14]}  Rd1+ {[%clk 0:00:17]} 47. Ke5 {[%clk 0:00:15]}  Kg4 {[%clk 0:00:16]} 48. Ke6 {[%clk 0:00:15]}  Re1+ {[%clk 0:00:16]} 49. Kd6 {[%clk 0:00:15]}  Rd1+ {[%clk 0:00:17]} 50. Kc7 {[%clk 0:00:16]}  Rc1+ {[%clk 0:00:18]} 51. Kb7 {[%clk 0:00:16]}  Rd1 {[%clk 0:00:18]} 52. Kxa7 {[%clk 0:00:17]}  Rd2 {[%clk 0:00:18]} 53. Kxb6 {[%clk 0:00:17]}  Rxb2+ {[%clk 0:00:18]} 54. Kc7 {[%clk 0:00:18]}  Rc2+ {[%clk 0:00:19]} 55. Kb8 {[%clk 0:00:15]}  Rb2+ {[%clk 0:00:19]} 56. Kc8 {[%clk 0:00:15]}  Rc2+ {[%clk 0:00:19]} 57. Kd8 {[%clk 0:00:16]}  Rxa2 {[%clk 0:00:19]} 58. Ke8 {[%clk 0:00:14]}  Ra8+ {[%clk 0:00:18]} 59. d8=Q {[%clk 0:00:14]}  Rxd8+ {[%clk 0:00:19]} 60. Kxd8 {[%clk 0:00:14]} 1-0


[Site "https://www.chess.com"]

[Event "Titled Tuesday Blitz April 4 Late 2023"]
[White "Suder, Jakub"]
[Black "Peatman, Carter"]
[WhiteFideId "1195310"]
[BlackFideId "2096480"]
[WhiteElo "2287"]
[BlackElo "2003"]
[Result "1-0"]
[Round "03"]
[TimeControl "180+2"]
[Date "2023.04.04"]
[WhiteClock "0:00:47"]
[BlackClock "0:00:33"]

1. d4 {[%clk 0:02:05]}  Nf6 {[%clk 0:02:49]} 2. c4 {[%clk 0:02:05]}  e6 {[%clk 0:02:45]} 3. Nc3 {[%clk 0:02:05]}  d5 {[%clk 0:02:46]} 4. cxd5 {[%clk 0:02:05]}  exd5 {[%clk 0:02:45]} 5. Bg5 {[%clk 0:02:05]}  c6 {[%clk 0:02:46]} 6. e3 {[%clk 0:02:05]}  Qb6 {[%clk 0:02:46]} 7. Qc2 {[%clk 0:02:03]}  Ne4 {[%clk 0:02:45]} 8. Bf4 {[%clk 0:02:01]}  Be6 {[%clk 0:02:26]} 9. Bd3 {[%clk 0:01:59]}  Nxc3 {[%clk 0:02:24]} 10. bxc3 {[%clk 0:01:58]}  Qa5 {[%clk 0:02:14]} 11. Ne2 {[%clk 0:01:56]}  Nd7 {[%clk 0:02:13]} 12. O-O {[%clk 0:01:55]}  Be7 {[%clk 0:02:10]} 13. Rab1 {[%clk 0:01:49]}  b6 {[%clk 0:02:03]} 14. Ng3 {[%clk 0:01:45]}  Nf6 {[%clk 0:01:57]} 15. Nf5 {[%clk 0:01:43]}  Bxf5 {[%clk 0:01:55]} 16. Bxf5 {[%clk 0:01:43]}  O-O {[%clk 0:01:54]} 17. Be5 {[%clk 0:01:36]}  h6 {[%clk 0:01:53]} 18. f3 {[%clk 0:01:30]}  Rfd8 {[%clk 0:01:43]} 19. Kh1 {[%clk 0:01:29]}  Ne8 {[%clk 0:01:37]} 20. e4 {[%clk 0:01:23]}  Bd6 {[%clk 0:01:33]} 21. f4 {[%clk 0:01:08]}  f6 {[%clk 0:01:08]} 22. Bxd6 {[%clk 0:01:01]}  Nxd6 {[%clk 0:01:07]} 23. e5 {[%clk 0:01:00]}  Nxf5 {[%clk 0:01:04]} 24. Qxf5 {[%clk 0:00:59]}  fxe5 {[%clk 0:01:03]} 25. Qe6+ {[%clk 0:00:57]}  Kh8 {[%clk 0:01:02]} 26. dxe5 {[%clk 0:00:57]}  c5 {[%clk 0:00:55]} 27. f5 {[%clk 0:00:53]}  Qxc3 {[%clk 0:00:45]} 28. f6 {[%clk 0:00:51]}  Rg8 {[%clk 0:00:43]} 29. fxg7+ {[%clk 0:00:49]}  Rxg7 {[%clk 0:00:44]} 30. Qxh6+ {[%clk 0:00:48]}  Rh7 {[%clk 0:00:36]} 31. Rf8+ {[%clk 0:00:46]}  Rxf8 {[%clk 0:00:33]} 32. Qxf8# {[%clk 0:00:47]} 1-0


[Site "https://www.chess.com"]

[Event "Titled Tuesday Blitz April 4 Late 2023"]
[White "Lopez Del Alamo, Antonio"]
[Black "Jimenez Almeida, Luis David"]
[WhiteFideId "2227339"]
[BlackFideId "22242244"]
[WhiteElo "2175"]
[BlackElo "2245"]
[Result "1-0"]
[Round "03"]
[TimeControl "180+2"]
[Date "2023.04.04"]
[WhiteClock "0:00:07"]
[BlackClock "0:00:03"]

1. e4 {[%clk 0:02:59]}  c6 {[%clk 0:02:58]} 2. d4 {[%clk 0:02:55]}  Na6 {[%clk 0:02:57]} 3. h3 {[%clk 0:02:48]}  g6 {[%clk 0:02:56]} 4. Nf3 {[%clk 0:02:45]}  Bg7 {[%clk 0:02:56]} 5. c3 {[%clk 0:02:35]}  Nc7 {[%clk 0:02:55]} 6. Bd3 {[%clk 0:02:33]}  d6 {[%clk 0:02:55]} 7. O-O {[%clk 0:02:32]}  Nf6 {[%clk 0:02:55]} 8. Re1 {[%clk 0:02:31]}  O-O {[%clk 0:02:55]} 9. Nbd2 {[%clk 0:02:28]}  a5 {[%clk 0:02:54]} 10. a4 {[%clk 0:02:16]}  Re8 {[%clk 0:02:52]} 11. Qe2 {[%clk 0:02:14]}  e5 {[%clk 0:02:51]} 12. dxe5 {[%clk 0:02:09]}  dxe5 {[%clk 0:02:52]} 13. Nc4 {[%clk 0:02:09]}  Nh5 {[%clk 0:02:48]} 14. Nb6 {[%clk 0:01:41]}  Rb8 {[%clk 0:02:44]} 15. Nxc8 {[%clk 0:01:33]}  Qxc8 {[%clk 0:02:45]} 16. Bc4 {[%clk 0:01:29]}  Ne6 {[%clk 0:02:45]} 17. Bxe6 {[%clk 0:01:26]}  Qxe6 {[%clk 0:02:42]} 18. Be3 {[%clk 0:01:24]}  h6 {[%clk 0:02:36]} 19. Nd2 {[%clk 0:01:20]}  Nf4 {[%clk 0:02:32]} 20. Bxf4 {[%clk 0:01:19]}  exf4 {[%clk 0:02:33]} 21. f3 {[%clk 0:01:19]}  Bf8 {[%clk 0:02:28]} 22. Qc4 {[%clk 0:01:17]}  Qe5 {[%clk 0:02:25]} 23. Nb3 {[%clk 0:01:14]}  Rbd8 {[%clk 0:02:19]} 24. Rad1 {[%clk 0:01:14]}  Be7 {[%clk 0:02:06]} 25. Rd4 {[%clk 0:01:08]}  b5 {[%clk 0:01:56]} 26. Qxc6 {[%clk 0:00:39]}  b4 {[%clk 0:01:16]} 27. Red1 {[%clk 0:00:34]}  Rc8 {[%clk 0:01:16]} 28. Qd5 {[%clk 0:00:16]}  Qxd5 {[%clk 0:01:02]} 29. Rxd5 {[%clk 0:00:16]}  bxc3 {[%clk 0:01:03]} 30. bxc3 {[%clk 0:00:16]}  Rxc3 {[%clk 0:01:04]} 31. Nd4 {[%clk 0:00:16]}  Bc5 {[%clk 0:00:45]} 32. Kh1 {[%clk 0:00:16]}  Kg7 {[%clk 0:00:31]} 33. Nb5 {[%clk 0:00:16]}  Rc4 {[%clk 0:00:29]} 34. e5 {[%clk 0:00:11]}  Re6 {[%clk 0:00:21]} 35. Nd6 {[%clk 0:00:10]}  Rc2 {[%clk 0:00:18]} 36. Ne4 {[%clk 0:00:10]}  Bb4 {[%clk 0:00:16]} 37. Rd7 {[%clk 0:00:08]}  Rxe5 {[%clk 0:00:15]} 38. Rb7 {[%clk 0:00:09]}  Re7 {[%clk 0:00:14]} 39. Rxe7 {[%clk 0:00:07]}  Bxe7 {[%clk 0:00:15]} 40. Rd7 {[%clk 0:00:07]}  Bb4 {[%clk 0:00:10]} 41. Nd6 {[%clk 0:00:07]}  Rc1+ {[%clk 0:00:07]} 42. Kh2 {[%clk 0:00:07]}  Rd1 {[%clk 0:00:07]} 43. Ne8+ {[%clk 0:00:07]}  Kf8 {[%clk 0:00:06]} 44. Rxd1 {[%clk 0:00:08]}  Kxe8 {[%clk 0:00:06]} 45. Rd5 {[%clk 0:00:08]}  Ke7 {[%clk 0:00:07]} 46. h4 {[%clk 0:00:08]}  Ke6 {[%clk 0:00:07]} 47. Rd3 {[%clk 0:00:09]}  Ke5 {[%clk 0:00:07]} 48. Kh3 {[%clk 0:00:09]}  h5 {[%clk 0:00:07]} 49. g3 {[%clk 0:00:05]}  fxg3 {[%clk 0:00:07]} 50. Kxg3 {[%clk 0:00:06]}  Be1+ {[%clk 0:00:07]} 51. Kg2 {[%clk 0:00:05]}  Bxh4 {[%clk 0:00:07]} 52. Rb3 {[%clk 0:00:06]}  Be1 {[%clk 0:00:07]} 53. Re3+ {[%clk 0:00:06]}  Kd4 {[%clk 0:00:06]} 54. Rxe1 {[%clk 0:00:06]}  Kc4 {[%clk 0:00:07]} 55. Re4+ {[%clk 0:00:07]}  Kb3 {[%clk 0:00:07]} 56. Kg3 {[%clk 0:00:07]}  g5 {[%clk 0:00:07]} 57. f4 {[%clk 0:00:07]}  h4+ {[%clk 0:00:05]} 58. Kg4 {[%clk 0:00:07]}  h3 {[%clk 0:00:03]} 59. Kxh3 {[%clk 0:00:07]}  f5 {[%clk 0:00:02]} 60. Rd4 {[%clk 0:00:06]}  g4+ {[%clk 0:00:01]} 61. Kg3 {[%clk 0:00:06]}  Kc3 {[%clk 0:00:02]} 62. Rd5 {[%clk 0:00:06]}  Kb4 {[%clk 0:00:03]} 63. Rxf5 {[%clk 0:00:06]}  Kxa4 {[%clk 0:00:03]} 64. Kxg4 {[%clk 0:00:07]} 1-0


[Site "https://www.chess.com"]

[Event "Titled Tuesday Blitz April 4 Late 2023"]
[White "Poltorak, Sebastian"]
[Black "Li, Hui"]
[WhiteFideId "1199498"]
[BlackFideId "15400310"]
[WhiteElo "2195"]
[BlackElo "1967"]
[Result "1-0"]
[Round "03"]
[TimeControl "180+2"]
[Date "2023.04.04"]
[WhiteClock "0:00:08"]
[BlackClock "0:00:01"]

1. d4 {[%clk 0:02:54]}  d5 {[%clk 0:02:59]} 2. c4 {[%clk 0:02:53]}  e6 {[%clk 0:02:59]} 3. Nc3 {[%clk 0:02:53]}  Nf6 {[%clk 0:03:00]} 4. cxd5 {[%clk 0:02:53]}  exd5 {[%clk 0:03:01]} 5. Bg5 {[%clk 0:02:54]}  c6 {[%clk 0:03:01]} 6. e3 {[%clk 0:02:54]}  Be7 {[%clk 0:03:01]} 7. Bd3 {[%clk 0:02:54]}  Nbd7 {[%clk 0:03:02]} 8. Qc2 {[%clk 0:02:54]}  O-O {[%clk 0:03:02]} 9. h3 {[%clk 0:02:54]}  Re8 {[%clk 0:03:02]} 10. Nf3 {[%clk 0:02:52]}  Nf8 {[%clk 0:03:02]} 11. O-O-O {[%clk 0:02:51]}  Be6 {[%clk 0:02:11]} 12. Ne5 {[%clk 0:02:27]}  N6d7 {[%clk 0:02:04]} 13. Bxe7 {[%clk 0:02:23]}  Qxe7 {[%clk 0:02:03]} 14. f4 {[%clk 0:02:22]}  f6 {[%clk 0:01:52]} 15. Nf3 {[%clk 0:02:18]}  Bf7 {[%clk 0:01:50]} 16. Rde1 {[%clk 0:02:16]}  Bg6 {[%clk 0:01:42]} 17. f5 {[%clk 0:01:51]}  Bf7 {[%clk 0:01:40]} 18. g4 {[%clk 0:01:51]}  b5 {[%clk 0:01:22]} 19. Rhg1 {[%clk 0:01:49]}  b4 {[%clk 0:01:20]} 20. Na4 {[%clk 0:01:48]}  c5 {[%clk 0:01:17]} 21. dxc5 {[%clk 0:01:42]}  Rac8 {[%clk 0:01:14]} 22. Kb1 {[%clk 0:01:41]}  Nxc5 {[%clk 0:01:13]} 23. Nxc5 {[%clk 0:01:41]}  Rxc5 {[%clk 0:01:12]} 24. Qd2 {[%clk 0:01:41]}  a5 {[%clk 0:01:07]} 25. g5 {[%clk 0:01:37]}  Kh8 {[%clk 0:01:04]} 26. h4 {[%clk 0:01:33]}  Bh5 {[%clk 0:00:43]} 27. Nd4 {[%clk 0:01:31]}  Rec8 {[%clk 0:00:27]} 28. Qg2 {[%clk 0:01:21]}  a4 {[%clk 0:00:23]} 29. gxf6 {[%clk 0:00:27]}  Qxf6 {[%clk 0:00:23]} 30. Ne6 {[%clk 0:00:27]}  Nxe6 {[%clk 0:00:16]} 31. fxe6 {[%clk 0:00:28]}  a3 {[%clk 0:00:12]} 32. Ref1 {[%clk 0:00:29]}  Qxb2+ {[%clk 0:00:08]} 33. Qxb2 {[%clk 0:00:29]}  axb2 {[%clk 0:00:09]} 34. e7 {[%clk 0:00:29]}  Kg8 {[%clk 0:00:02]} 35. Kxb2 {[%clk 0:00:11]}  Re8 {[%clk 0:00:03]} 36. Rf8+ {[%clk 0:00:07]}  Rxf8 {[%clk 0:00:03]} 37. Bxh7+ {[%clk 0:00:08]}  Kf7 {[%clk 0:00:02]} 38. exf8=Q+ {[%clk 0:00:08]}  Kxf8 {[%clk 0:00:02]} 39. Rf1+ {[%clk 0:00:08]}  Ke7 {[%clk 0:00:03]} 40. Rg1 {[%clk 0:00:08]}  Rc3 {[%clk 0:00:03]} 41. Rxg7+ {[%clk 0:00:07]}  Kf6 {[%clk 0:00:03]} 42. Rg5 {[%clk 0:00:08]}  Bf7 {[%clk 0:00:03]} 43. e4 {[%clk 0:00:06]}  dxe4 {[%clk 0:00:03]} 44. Bxe4 {[%clk 0:00:06]}  Re3 {[%clk 0:00:03]} 45. Rf5+ {[%clk 0:00:07]}  Ke7 {[%clk 0:00:03]} 46. Rf4 {[%clk 0:00:05]}  Re2+ {[%clk 0:00:03]} 47. Kc1 {[%clk 0:00:05]}  Bxa2 {[%clk 0:00:03]} 48. Bd3 {[%clk 0:00:04]}  Re3 {[%clk 0:00:03]} 49. Kd2 {[%clk 0:00:03]}  Re6 {[%clk 0:00:03]} 50. Rxb4 {[%clk 0:00:04]}  Rd6 {[%clk 0:00:03]} 51. Ra4 {[%clk 0:00:03]}  Be6 {[%clk 0:00:02]} 52. Ra7+ {[%clk 0:00:04]}  Bd7 {[%clk 0:00:02]} 53. Ke3 {[%clk 0:00:04]}  Kd8 {[%clk 0:00:03]} 54. Kf4 {[%clk 0:00:04]}  Rxd3 {[%clk 0:00:03]} 55. Ra8+ {[%clk 0:00:04]}  Kc7 {[%clk 0:00:03]} 56. h5 {[%clk 0:00:05]}  Rd4+ {[%clk 0:00:03]} 57. Ke5 {[%clk 0:00:05]}  Rd6 {[%clk 0:00:03]} 58. Ra7+ {[%clk 0:00:06]}  Kc6 {[%clk 0:00:01]} 59. Ra6+ {[%clk 0:00:06]}  Kc7 {[%clk 0:00:01]} 60. Rxd6 {[%clk 0:00:07]}  Bc6 {[%clk 0:00:02]} 61. h6 {[%clk 0:00:08]}  Bb5 {[%clk 0:00:01]} 62. h7 {[%clk 0:00:08]} 1-0


[Site "https://www.chess.com"]